Cogmind - Beta 16.1 @@@ ROGUE MODE // 2026.04.02 @ 12:34:32 Player: SunShine214 Result: Destroyed by Tiamat Bomb Trap Performance ------------- Evolutions (6) 3000 Regions Visited (14) 2800 Robots Destroyed (57) 285 Value Destroyed (1972) 1972 Prototype IDs (22) 440 Alien Tech Used (0) 0 Bonus (2332) 2332 TOTAL SCORE: 10829 Bonus ------- Follower Combat Kills 1432 Met Zhirov 300 Built Enhanced Grunts 300 A7 Reached Mainframe 300 Cogmind --------- Core Integrity 0/1150 Matter 272/300 Energy 98/100 System Corruption 7% Temperature Cool (0) Movement Core (50) Location -4/Armory Parts ------- > --- POWER (2) -------- (None) > --- PROPULSION (5) --- (None) > --- UTILITY (6) ------ Hacking Suite Improved System Shield > --- WEAPON (6) ------- Lance > --- INVENTORY (5) ---- Advanced Medium Treads Advanced Cooling System Improved Heavy Armor Plating HERF Cannon Peak State ------------ > --- POWER ------------ Improved Deuterium Engine > --- PROPULSION ------- Field Propulsion Drive Q-thruster Q-thruster Q-thruster Q-thruster > --- UTILITY ---------- Large Storage Unit Advanced Salvage Targeting Computer Centrium Medium Armor Plating Hacking Suite Improved System Shield > --- WEAPON ----------- 1B-0RG's Assimilator Great Maul > --- INVENTORY -------- Improved Treads Centrium Heavy Treads Improved Cesium-ion Thruster Advanced Cooling System Large Storage Unit Tower Shield Hacking Suite Improved System Shield Improved Lightning Gun Gauss Rifle Enhanced Gauss Cannon Enhanced Gauss Cannon Remote Datajack [Rating: 142] Favorites ----------- Power Improved Deuterium Engine Engine Improved Deuterium Engine Power Core Micro Nuclear Core Reactor Light Antimatter Reactor Propulsion Light Treads Treads Light Treads Leg Aluminum Leg Wheel Armored Huge Wheel Hover Unit Cooled Airjet Flight Unit Q-thruster Utility Large Storage Unit Device Seismic Detector Storage Large Storage Unit Processor Improved Signal Interpreter Hackware Hacking Suite Protection Centrium Medium Armor Plating Weapon 1B-0RG's Assimilator Energy Gun Heavy Particle Gun Ballistic Gun Assault Rifle Ballistic Cannon Advanced Assault Cannon Special Weapon Mining Laser Impact Weapon Mace Slashing Weapon Axe Piercing Weapon Lance Special Melee Weapon 1B-0RG's Assimilator Build | -11 -10 -10 -10 -8 -7 -6 -6 -6 -6 -5 -4 -4 -4 -4 ------- Run | Yrd Mat Min Sub Mat Fac Fac Ext Cet Arc Fac Fac Was Fac Arm Slots Evolved 12 | . . . . 4 2 2 . . . 2 2 . . . Power 1 | . . . . . . . . . . . 1 . . . Propulsion 3 | . . . . 1 . . . . . 2 . . . . Utility 4 | . . . . 3 . . . . . . 1 . . . Weapon 4 | . . . . . 2 2 . . . . . . . . Parts Attached 97 | 7 4 1 1 19 18 6 8 5 2 15 3 . 8 . Power 9 | 1 . . . 3 1 . 1 1 . . 1 . 1 . Engine 6 | 1 . . . 3 . . 1 1 . . . . . . Core 2 | . . . . . 1 . . . . . . . 1 . Reactor 1 | . . . . . . . . . . . 1 . . . Propulsion 35 | 2 . 1 . 6 7 3 2 1 . 9 1 . 3 . Treads 9 | 2 . . . 2 2 . 1 1 . 1 . . . . Leg 7 | . . 1 . 4 . 1 1 . . . . . . . Wheel 2 | . . . . . . 2 . . . . . . . . Hover 8 | . . . . . 5 . . . . 2 . . 1 . Flight 9 | . . . . . . . . . . 6 1 . 2 . Utility 30 | 2 1 . . 5 6 2 2 3 2 5 1 . 1 . Device 9 | 1 . . . 3 3 . . . . 1 1 . . . Storage 3 | 1 1 . . . . . . . . 1 . . . . Processor 2 | . . . . . 1 . . . . 1 . . . . Hackware 6 | . . . . . 1 2 . . 1 2 . . . . Protection 10 | . . . . 2 1 . 2 3 1 . . . 1 . Artifact . | . . . . . . . . . . . . . . . Weapon 23 | 2 3 . 1 5 4 1 3 . . 1 . . 3 . Energy Gun 10 | 2 1 . . 3 3 . . . . . . . 1 . Energy Cannon . | . . . . . . . . . . . . . . . Ballistic Gun 4 | . 1 . . 1 . . 2 . . . . . . . Ballistic Cannon 1 | . . . . . 1 . . . . . . . . . Launcher . | . . . . . . . . . . . . . . . Special Weapon 1 | . 1 . . . . . . . . . . . . . Impact Weapon 3 | . . . 1 1 . . . . . 1 . . . . Slashing Weapon 2 | . . . . . . . 1 . . . . . 1 . Piercing Weapon 1 | . . . . . . . . . . . . . 1 . Special Melee Weapon 1 | . . . . . . 1 . . . . . . . . Unidentified Prototypes 9 | . . . . 1 2 1 . 2 . 1 . . 2 . Corrupted Parts 2 | . . . . . . . . 1 . 1 . . . . System Corruption 10 | . . . . . . . . 2 . 8 . . . . Parts Lost 66 | . . 1 1 12 20 2 2 2 3 7 9 . 5 2 Power 7 | . . . . 1 1 1 . 1 . 1 1 . 1 . Propulsion 26 | . . 1 . 4 8 . 1 1 . 3 4 . 2 2 Utility 18 | . . . . 2 6 1 1 . 2 2 3 . 1 . Weapon 15 | . . . 1 5 5 . . . 1 1 1 . 1 . Highest Loss Streak 9 | . . 1 1 6 9 2 1 2 3 5 9 . 3 2 To Critical Strikes 1 | . . . . . 1 . . . . . . . . . Average Backups 10 | 1 5 8 8 9 8 12 13 13 14 13 9 3 2 4 Power . | . . 1 1 1 . 1 1 . . . . . . . Propulsion 1 | . . . . 1 2 1 2 1 2 1 2 1 . 1 Utility 4 | . 3 4 4 4 3 4 4 5 6 5 3 2 1 2 Weapon 3 | . 2 3 3 . . 4 5 5 5 4 2 . . 1 Tool/Special . | . . . . . . . . . . . . . . . Unused Backups 26 | . 1 . . . 6 1 2 . . 6 5 . 1 4 Power 1 | . . . . . . 1 . . . . . . . . Propulsion 5 | . . . . . 3 . . . . 1 . . . 1 Utility 10 | . 1 . . . 2 . 1 . . 2 1 . 1 2 Weapon 7 | . . . . . . . 1 . . 2 3 . . 1 Tool/Special 3 | . . . . . 1 . . . . 1 1 . . . Average Slot Usage (%) 70 | . 100 99 98 75 85 49 62 65 60 67 43 10 20 22 Engine 5 | . 14 14 14 7 4 . 4 5 6 5 . . . . Treads 7 | . 28 14 14 3 8 . 3 11 13 6 . . . . Leg 5 | . . 12 14 18 6 3 1 . . . . . . . Wheel 1 | . . . . . . 1 7 . . . . . . . Hover 2 | . . . . . 5 11 . . . 4 . . 1 . Flight 1 | . . . . . . . . . . 9 13 . 4 5 Device 5 | . 14 14 14 17 7 . . . . . 2 . . . Storage 7 | . 14 14 14 9 7 6 6 6 6 5 4 . . . Processor 3 | . . . . . 6 6 6 6 4 . . . . . Hackware 7 | . . . . . 4 11 13 13 11 12 14 10 9 10 Protection 4 | . . . . 5 5 . 5 6 7 8 2 . . . Energy Gun 4 | . 15 14 12 6 11 . . . . . . . 1 . Ballistic Gun 2 | . 12 14 6 1 . . 2 . . . . . . . Impact Weapon 2 | . . . 7 5 6 . . . . 4 3 . . . Special Melee Weapon 2 | . . . . . . 5 6 6 6 4 . . . . Peak Build Rating 142 | 7 8 8 16 36 51 99 107 121 122 142 74 12 70 47 Average Rating 68 | 5 7 7 9 27 40 90 103 118 118 131 55 12 28 27 On Entrance 45 | . 7 8 8 15 36 33 96 105 121 122 62 12 12 47 Avg Prop Armor Cover (%) 6 | . . 7 8 9 6 6 6 7 . 3 10 . 16 . Naked Turns . | . . . . . . . . . . . . . . . Heaviest Build 104 | 13 30 30 30 42 46 86 96 95 100 104 37 . 11 8 Greatest Support 110 | 40 40 20 20 43 40 38 38 110 110 110 39 3 80 14 Greatest Overweight (x) 7 | . . 1 1 7 5 5 3 3 . 3 2 . 1 1 Average Overweight (x) 1 | . . 1 1 . 1 3 2 . . . . . . . Largest Inventory Capacity 15 | 8 15 15 15 15 15 15 15 15 15 15 15 5 5 5 Average Capacity 14 | 7 13 15 15 15 15 15 15 15 15 15 13 5 5 5 Most Carried 15 | 3 8 8 14 15 15 15 15 15 15 15 14 5 5 5 Average Carried 12 | 1 5 8 9 14 13 13 14 14 15 14 11 5 3 5 Final Capacity 15 | 8 15 15 15 15 15 15 15 15 15 15 5 5 5 5 Final Carried 15 | 3 8 8 14 14 12 15 15 15 15 13 5 5 5 5 Class Distribution -------------------- 38% | Scavenger-Mutant 27% | Mutant 25% | Hacker-Mutant 3% | Scavenger-Tank Dominant Class ---------------- Mutant | -10/Materials Mutant | -10/Mines Mutant | -10/Subcaves Scavenger-Mutant | -8/Materials Scavenger-Mutant | -7/Factory Hacker-Mutant | -6/Factory Hacker-Mutant | -6/Extension Scavenger-Mutant | -6/Cetus Scavenger-Mutant | -6/Archives Scavenger-Mutant | -5/Factory Hacker-Mutant | -4/Factory Hacker-Mutant | -4/Waste Hacker-Mutant | -4/Factory Hacker-Mutant | -4/Armory Resources | -11 -10 -10 -10 -8 -7 -6 -6 -6 -6 -5 -4 -4 -4 -4 ----------- Run | Yrd Mat Min Sub Mat Fac Fac Ext Cet Arc Fac Fac Was Fac Arm Matter Collected 4017 | 235 161 29 . 277 295 357 1159 280 . 1134 . . 90 . Remotely . | . . . . . . . . . . . . . . . Salvage Created 2064 | 93 388 85 . 658 625 . 61 . . 47 . . 107 . Parts 111 | 6 17 3 . 37 39 . 3 . . 4 . . 2 . Haulers Intercepted . | . . . . . . . . . . . . . . . Recyclers Shooed 4 | . 2 . . 1 . . . . . . . . 1 . Parts Field Recycled . | . . . . . . . . . . . . . . . Retrieved Matter . | . . . . . . . . . . . . . . . Parts Self-Destructed . | . . . . . . . . . . . . . . . Prevented . | . . . . . . . . . . . . . . . Parts Restored . | . . . . . . . . . . . . . . . Kills | -11 -10 -10 -10 -8 -7 -6 -6 -6 -6 -5 -4 -4 -4 -4 ------- Run | Yrd Mat Min Sub Mat Fac Fac Ext Cet Arc Fac Fac Was Fac Arm Combat Hostiles Destroyed 45 | . 7 2 . 17 15 . 1 . . 1 . . 2 . Melee 1 | . . . . . . . . . . 1 . . . . Guns 36 | . 7 2 . 16 8 . 1 . . . . . 2 . Cannons 6 | . . . . . 6 . . . . . . . . . AOE 1 | . . . . 1 . . . . . . . . . . Classes Destroyed 12 | 2 2 . . 5 3 . . . . . . . . . Worker 1 | . . . . . 1 . . . . . . . . . Builder 1 | . . . . 1 . . . . . . . . . . Tunneler 2 | 2 . . . . . . . . . . . . . . Recycler 4 | 1 1 . . . 2 . . . . . . . . . Mechanic 1 | . . . . 1 . . . . . . . . . . Operator 1 | . . . . . 1 . . . . . . . . . Watcher 2 | . 2 . . . . . . . . . . . . . Swarmer 14 | . . . . 6 7 . . . . . . . 1 . Grunt 22 | . 7 2 . 7 3 . 1 . . 1 . . 1 . Sentry 5 | . . . . 3 2 . . . . . . . . . Hunter 1 | . . . . 1 . . . . . . . . . . Programmer 3 | . . . . . 3 . . . . . . . . . Best Kill Streak 6 | 2 3 2 . 6 5 . 1 . . 1 . . 2 . Combat Bots Only 5 | . 3 2 . 5 4 . 1 . . 1 . . 2 . Max Kills in Single Turn 2 | 1 1 1 . 2 1 . 1 . . 1 . . 1 . Gunslinging 1 | . . . . 1 . . . . . . . . . . Exploded 1 | . . . . 1 . . . . . . . . . . Melee 1 | . . . . . . . . . . 1 . . . . Uniques/NPCs Destroyed . | . . . . . . . . . . . . . . . Combat | -11 -10 -10 -10 -8 -7 -6 -6 -6 -6 -5 -4 -4 -4 -4 -------- Run | Yrd Mat Min Sub Mat Fac Fac Ext Cet Arc Fac Fac Was Fac Arm Hostile Shots Fired 921 | . 42 13 . 183 238 28 85 7 1 83 86 1 121 33 Missed 284 | . 15 3 . 47 68 10 22 2 1 17 26 1 53 19 Hits 637 | . 27 10 . 136 170 18 63 5 . 66 60 . 68 14 Melee 1 | . . . . . . . . . . . . . . 1 Projectile 636 | . 27 10 . 136 170 18 63 5 . 66 60 . 68 13 AOE 3 | . . . . . 3 . . . . . . . . . Critical Strikes 20 | . . 1 . 2 3 2 1 1 . 3 4 . 3 . Part Disruptions 1 | . . . . . . . . . . . . . 1 . Damage Taken 11670 | . 323 153 184 1713 2213 324 1085 210 1107 1705 1069 . 1223 361 Core 3077 | . 58 18 . 546 489 67 275 47 143 284 531 . 383 236 Absorbed by Shields 78 | . . . . . . . 52 26 . . . . . . Regen/Repaired (Parts) 764 | . . . . . . 178 216 26 . 344 . . . . Core Remaining (%) 51 | 100 . . 69 . 30 . . . 37 71 . . . . Volleys Fired 200 | 8 32 8 . 75 48 . 7 . . . . . 22 . Largest 3 | 2 2 2 . 2 3 . 1 . . . . . 1 . Hottest 170 | 80 140 70 . 78 170 . 28 . . . . . 88 . Shots Fired 313 | 16 64 16 . 87 100 . 7 . . . . . 23 . Gun 285 | 16 62 16 . 87 74 . 7 . . . . . 23 . Cannon 26 | . . . . . 26 . . . . . . . . . Launcher . | . . . . . . . . . . . . . . . Special 2 | . 2 . . . . . . . . . . . . . Kinetic 104 | . 30 8 . 33 26 . 7 . . . . . . . Thermal 193 | 16 34 8 . 42 70 . . . . . . . 23 . Explosive . | . . . . . . . . . . . . . . . Electromagnetic 16 | . . . . 12 4 . . . . . . . . . Robot Hit Streak 18 | 3 7 5 . 18 11 . 8 . . . . . 6 . Robot Miss Streak 6 | 3 4 2 . 6 6 . 1 . . . . . 4 . Penetration Max 1 | . . . . 1 . . . . . . . . . . Secondary Targets 6 | . 3 . . 3 . . . . . . . . . . Max Gunslinging Chain 1 | . 1 . . 1 . . . . . . . . . . Shots Hit Robots 204 | 9 39 10 . 60 64 . 5 . . 3 . . 14 . Core Hits 99 | 4 20 5 . 31 29 . 3 . . 1 . . 6 . Critical Kills . | . . . . . . . . . . . . . . . Critical Parts Destroyed 2 | . . . . . 2 . . . . . . . . . Critical Strikes 8 | . . . . 3 5 . . . . . . . . . Burn 3 | . . . . 2 1 . . . . . . . . . Destroy 1 | . . . . 1 . . . . . . . . . . Blast 2 | . . . . . 2 . . . . . . . . . Smash 2 | . . . . . 2 . . . . . . . . . Melee Attacks 59 | . . . 21 7 11 . 2 7 2 8 . . 1 . Impact 47 | . . . 21 7 11 . . . . 8 . . . . Slashing 11 | . . . . . . . 2 7 2 . . . . . Piercing 1 | . . . . . . . . . . . . . 1 . Sneak Attacks 2 | . . . . . 1 . . . . . . . 1 . Combat Hostiles . | . . . . . . . . . . . . . . . Follow-up Attacks . | . . . . . . . . . . . . . . . Damage Inflicted 4520 | 112 497 133 . 1532 1516 . 99 . . 151 22 . 458 . Guns 3369 | 112 497 133 . 1287 868 . 99 . . . . . 373 . Cannons 412 | . . . . . 412 . . . . . . . . . Explosions 233 | . . . . 233 . . . . . . . . . . Melee 460 | . . . . . 236 . . . . 151 . . 73 . Ramming 46 | . . . . 12 . . . . . . 22 . 12 . Kinetic 1272 | . 236 57 . 468 412 . 99 . . . . . . . Thermal 2600 | 112 261 76 . 941 837 . . . . . . . 373 . Explosive . | . . . . . . . . . . . . . . . Electromagnetic 142 | . . . . 111 31 . . . . . . . . . Impact 387 | . . . . . 236 . . . . 151 . . . . Slashing . | . . . . . . . . . . . . . . . Piercing 73 | . . . . . . . . . . . . . 73 . Highest Corruption 10 | . . . 2 . 8 . . 2 8 10 . 6 7 7 Average Corruption 5 | . . . 2 . 5 . . 2 4 7 . 6 6 7 Corruption Purged . | . . . . . . . . . . . . . . . Corruption Blocked . | . . . . . . . . . . . . . . . Effects 75 | . . . . . 34 . . 8 5 18 . 2 7 1 Message Errors 22 | . . . . . 9 . . 3 1 8 . . 1 . Matter Fused 15 | . . . . . 6 . . 1 1 3 . 1 3 . Heat Flow Errors 8 | . . . . . 6 . . . 1 . . . 1 . Energy Discharges 5 | . . . . . 1 . . 1 . 2 . 1 . . Parts Rejected 1 | . . . . . . . . . . 1 . . . . Parts Fused 2 | . . . . . . . . 1 . 1 . . . . Data Loss (minor) 10 | . . . . . 4 . . 1 2 1 . . 1 1 Data Loss (major) 3 | . . . . . 2 . . 1 . . . . . . Misfires 3 | . . . . . 2 . . . . . . . 1 . Alerts 3 | . . . . . 1 . . . . 2 . . . . Weapon Failures 3 | . . . . . 3 . . . . . . . . . Overload Shots . | . . . . . . . . . . . . . . . Overflow Damage 154 | . . . . . 107 . . . . 14 . . 33 . Projectiles 3 | . . . . . 3 . . . . . . . . . Explosions . | . . . . . . . . . . . . . . . Melee 151 | . . . . . 104 . . . . 14 . . 33 . Knockbacks 1 | . . . . . 1 . . . . . . . . . Impact . | . . . . . . . . . . . . . . . Kinetic 1 | . . . . . 1 . . . . . . . . . Secondary . | . . . . . . . . . . . . . . . Self-Inflicted Damage 10 | . . . . . . . . . . . 10 . . . Shots . | . . . . . . . . . . . . . . . Rammed 13 | . 1 . . 1 . . . . . . 2 . 9 . Targets Rammed 15 | . 2 . . 2 . . . . . . 2 . 9 . Kicked 1 | . . . . 1 . . . . . . . . . . Crushed 1 | . 1 . . . . . . . . . . . . . Highest Temperature 369 | 72 150 174 . 232 369 . . . 194 20 . . 264 . Average Temperature 99 | 29 60 99 . 130 134 . . . 93 10 . . 98 . Received Heat Transfer 1910 | . 183 102 . 558 246 . 165 9 . 309 91 . 226 21 Effects 9 | . . . . . 7 . . . . . . . 2 . Shutdowns 1 | . . . . . 1 . . . . . . . . . Energy Bleed 2 | . . . . . 1 . . . . . . . 1 . Interference 6 | . . . . . 5 . . . . . . . 1 . Siege Activations . | . . . . . . . . . . . . . . . Martial Activations . | . . . . . . . . . . . . . . . Shielding Activations . | . . . . . . . . . . . . . . . Robots Disrupted . | . . . . . . . . . . . . . . . Combat Hostiles . | . . . . . . . . . . . . . . . Robots Corrupted 1 | . . . . . 1 . . . . . . . . . Combat Hostiles 1 | . . . . . 1 . . . . . . . . . Parts Fried . | . . . . . . . . . . . . . . . Impact Corruptions 6 | . . . . . 5 . . . . 1 . . . . Robots Melted . | . . . . . . . . . . . . . . . Combat Hostiles . | . . . . . . . . . . . . . . . Parts Melted 11 | 1 2 2 . 2 3 . . . . . . . 1 . Heat Transferred 5040 | 250 777 222 . 1717 1593 . . . . . . . 481 . Parts Sabotaged . | . . . . . . . . . . . . . . . Parts Stolen . | . . . . . . . . . . . . . . . Parts Stripped . | . . . . . . . . . . . . . . . Power Chain Reactions 2 | . . . . 2 . . . . . . . . . . Alert | -11 -10 -10 -10 -8 -7 -6 -6 -6 -6 -5 -4 -4 -4 -4 ------- Run | Yrd Mat Min Sub Mat Fac Fac Ext Cet Arc Fac Fac Was Fac Arm Maximum Alert Level 1 | . . . . 1 . . . . 1 . . . . . Low Security (%) 99 | 100 100 100 . 98 100 100 100 100 99 100 100 100 100 100 Level 1 . | . . . . 1 . . . . . . . . . . Level 2 . | . . . . . . . . . . . . . . . Level 3 . | . . . . . . . . . . . . . . . Level 4 . | . . . . . . . . . . . . . . . Level 5 . | . . . . . . . . . . . . . . . High Security . | . . . . . . . . . . . . . . . Max Security . | . . . . . . . . . . . . . . . Peak Influence 207 | 5 69 34 . 207 124 78 106 49 200 106 . . 110 60 Initial 60 | . . 4 . . 25 23 13 6 . 14 . . . 60 Average 30 | . 25 4 . 78 42 9 28 6 53 24 . . 7 43 Influence Increases 2858 | 15 214 50 . 508 481 186 405 128 221 433 . . 217 . Destroy 0b10 Robot/C 1660 | . 140 40 . 340 300 100 220 80 140 260 . . 40 . Destroy 0b10 Robot/NC 110 | 15 15 . . 10 20 10 15 5 5 15 . . . . Destroy Leader 326 | . 34 10 . 90 80 34 24 . . 54 . . . . Allied During Kill 172 | . . . . . . 11 55 19 55 32 . . . . Successful Hack 36 | . 9 . . 7 . . 12 8 . . . . . . Disable Machine 180 | . 15 . . 15 45 . 30 15 15 45 . . . . Destroy Structure 59 | . 1 . . 16 6 1 4 1 6 12 . . 12 . Partial Spotted 15 | . . . . . . . . . . . . . 15 . Lose Combat Pursuer 300 | . . . . 30 30 30 45 . . 15 . . 150 . Influence Decreases 2828 | 15 201 63 . 452 489 206 421 140 181 473 . . 92 95 Entered New Map 177 | . . 9 . . 31 25 15 6 . 26 . . . 65 Time Decay 2003 | 15 201 44 . 372 326 173 343 94 71 286 . . 68 10 Lost Part 355 | . . 10 . 80 132 . . 20 30 39 . . 24 20 Lost Ally 293 | . . . . . . 8 63 20 80 122 . . . . Squads Dispatched 21 | . 1 . . 4 3 2 3 . . 4 1 . 2 1 Investigation 7 | . 1 . . 2 . . 2 . . 2 . . . . Extermination 7 | . . . . . 2 2 . . . 2 . . 1 . Reinforcement 7 | . . . . 2 1 . 1 . . . 1 . 1 1 Assault . | . . . . . . . . . . . . . . . Garrison . | . . . . . . . . . . . . . . . Intercept . | . . . . . . . . . . . . . . . Searches Triggered . | . . . . . . . . . . . . . . . Construction Impeded 2 | . . . . 1 . . 1 . . . . . . . Haulers Reinforced 1 | . . . . . . . . . . . 1 . . . Active Scanning Responses . | . . . . . . . . . . . . . . . Cargo Convoy Interrupts 1 | . . . . . . . . . . 1 . . . . Stealth | -11 -10 -10 -10 -8 -7 -6 -6 -6 -6 -5 -4 -4 -4 -4 --------- Run | Yrd Mat Min Sub Mat Fac Fac Ext Cet Arc Fac Fac Was Fac Arm Distress Signals 9 | . . . . 3 . . 1 1 . 2 1 . 1 . Communications Jammed . | . . . . . . . . . . . . . . . Distress Signals . | . . . . . . . . . . . . . . . Times Spotted 186 | . 10 2 . 24 21 8 30 5 5 31 8 6 27 9 Peak Tracking Total 17 | . 3 2 . 6 4 2 5 5 6 6 7 6 17 8 Tactical Retreats 15 | . . . . 2 2 2 3 . . 1 . . 5 . Traps | -11 -10 -10 -10 -8 -7 -6 -6 -6 -6 -5 -4 -4 -4 -4 ------- Run | Yrd Mat Min Sub Mat Fac Fac Ext Cet Arc Fac Fac Was Fac Arm Traps Triggered 9 | . 1 . . 1 3 . . . . . 2 . 1 1 Indirectly . | . . . . . . . . . . . . . . . Trap Hack Attempts . | . . . . . . . . . . . . . . . Triggered . | . . . . . . . . . . . . . . . Disarmed . | . . . . . . . . . . . . . . . Reprogrammed . | . . . . . . . . . . . . . . . Reused . | . . . . . . . . . . . . . . . Traps Extracted . | . . . . . . . . . . . . . . . Installed . | . . . . . . . . . . . . . . . Triggered . | . . . . . . . . . . . . . . . Machines | -11 -10 -10 -10 -8 -7 -6 -6 -6 -6 -5 -4 -4 -4 -4 ---------- Run | Yrd Mat Min Sub Mat Fac Fac Ext Cet Arc Fac Fac Was Fac Arm Machines Disabled 16 | . 1 . 1 1 3 . 4 2 1 3 . . . . Max in Single Turn 1 | . 1 . 1 1 1 . 1 1 . 1 . . . . Garrison Access 1 | . . . . . 1 . . . . . . . . . Machines Repaired . | . . . . . . . . . . . . . . . Machines Dismantled . | . . . . . . . . . . . . . . . Machines Sabotaged . | . . . . . . . . . . . . . . . Overloaded Fab Kills . | . . . . . . . . . . . . . . . Hacking | -11 -10 -10 -10 -8 -7 -6 -6 -6 -6 -5 -4 -4 -4 -4 --------- Run | Yrd Mat Min Sub Mat Fac Fac Ext Cet Arc Fac Fac Was Fac Arm Machines Accessed 29 | . 4 . 1 3 3 2 7 3 . 5 1 . . . Terminals 21 | . 3 . . 3 1 . 7 3 . 3 1 . . . Fabricators 1 | . . . . . . . . . . 1 . . . . Repair Stations 1 | . . . . . . 1 . . . . . . . . Recycling Units 2 | . 1 . . . 1 . . . . . . . . . Scanalyzers 2 | . . . . . . 1 . . . 1 . . . . Garrison Access 1 | . . . . . 1 . . . . . . . . . Total Hacks 55 | . 4 . 1 7 5 4 14 5 . 14 1 . . . Successful 23 | . 3 . 1 1 1 3 5 3 . 6 . . . . Failed 32 | . 1 . . 6 4 1 9 2 . 8 1 . . . Catastrophic 10 | . 1 . . 3 1 . 2 . . 3 . . . . Database Lockouts . | . . . . . . . . . . . . . . . Manual 17 | . 1 . . 5 2 . 3 2 1 2 1 . . . Terminals 37 | . 3 . . 7 2 . 14 5 . 5 1 . . . Fabricators 4 | . . . . . . . . . . 4 . . . . Repair Stations 3 | . . . . . . 3 . . . . . . . . Recycling Units 3 | . 1 . . . 2 . . . . . . . . . Scanalyzers 6 | . . . . . . 1 . . . 5 . . . . Garrison Access 1 | . . . . . 1 . . . . . . . . . Terminal Hacks 12 | . 2 . 1 1 . . 5 3 . . . . . . Record 2 | . . . . . . . . 2 . . . . . . Part Schematic 1 | . . . . . . . 1 . . . . . . . Open Door 5 | . . . . . . . 4 1 . . . . . . Branch Access Points 1 | . . . . 1 . . . . . . . . . . Hauler Manifests 1 | . 1 . . . . . . . . . . . . . Registered Prototypes 1 | . 1 . . . . . . . . . . . . . Proto ID Catalog 1 | . . . 1 . . . . . . . . . . . Fabricator Hacks 2 | . . . . . . . . . . 2 . . . . Load Schematic 1 | . . . . . . . . . . 1 . . . . Build 1 | . . . . . . . . . . 1 . . . . Repair Station Hacks 2 | . . . . . . 2 . . . . . . . . Scan Component 1 | . . . . . . 1 . . . . . . . . Repair 1 | . . . . . . 1 . . . . . . . . Recycling Unit Hacks 1 | . 1 . . . . . . . . . . . . . Retrieve Components 1 | . 1 . . . . . . . . . . . . . Scanalyzer 5 | . . . . . . 1 . . . 4 . . . . Insert Component 1 | . . . . . . . . . . 1 . . . . Analyze 3 | . . . . . . . . . . 3 . . . . Retrieve Study 1 | . . . . . . 1 . . . . . . . . Garrison Access Hacks 1 | . . . . . 1 . . . . . . . . . Seal Access 1 | . . . . . 1 . . . . . . . . . Unauthorized Hacks . | . . . . . . . . . . . . . . . Terminals . | . . . . . . . . . . . . . . . Fabricators . | . . . . . . . . . . . . . . . Repair Stations . | . . . . . . . . . . . . . . . Recycling Units . | . . . . . . . . . . . . . . . Scanalyzers . | . . . . . . . . . . . . . . . Garrison Access . | . . . . . . . . . . . . . . . Data Cores Recovered . | . . . . . . . . . . . . . . . Used . | . . . . . . . . . . . . . . . Hacking Detections 18 | . 2 . . 3 2 2 4 . . 5 . . . . Full Trace Events 5 | . . . . 1 . . 2 . . 2 . . . . Feedback Events 1 | . . . . . . . 1 . . . . . . . Hackware Fried 1 | . . . . . . . 1 . . . . . . . Feedback Blocked . | . . . . . . . . . . . . . . . Robot Schematics Acquired . | . . . . . . . . . . . . . . . Robots Built . | . . . . . . . . . . . . . . . Authchips . | . . . . . . . . . . . . . . . Time . | . . . . . . . . . . . . . . . Total Robot Build Rating . | . . . . . . . . . . . . . . . Part Schematics Acquired 2 | . . . . . . . 1 . . 1 . . . . Parts Built 1 | . . . . . . . . . . 1 . . . . Authchips . | . . . . . . . . . . . . . . . Time 204 | . . . . . . . . . . 204 . . . . Total Part Build Rating 8 | . . . . . . . . . . 8 . . . . Part Studies Acquired 1 | . . . . . . 1 . . . . . . . . Parts Repaired 1 | . . . . . . 1 . . . . . . . . Time 70 | . . . . . . 70 . . . . . . . . Parts Recycled . | . . . . . . . . . . . . . . . Recycled Matter . | . . . . . . . . . . . . . . . Retrieved Matter . | . . . . . . . . . . . . . . . Retrieved Components 2 | . 2 . . . . . . . . . . . . . Parts Scanalyzed 1 | . . . . . . . . . . 1 . . . . Part Schematics Acquired 1 | . . . . . . . . . . 1 . . . . Parts Damaged . | . . . . . . . . . . . . . . . Bothacking | -11 -10 -10 -10 -8 -7 -6 -6 -6 -6 -5 -4 -4 -4 -4 ------------ Run | Yrd Mat Min Sub Mat Fac Fac Ext Cet Arc Fac Fac Was Fac Arm Used RIF Installer . | . . . . . . . . . . . . . . . Robots Hacked . | . . . . . . . . . . . . . . . Non-combat . | . . . . . . . . . . . . . . . Combat . | . . . . . . . . . . . . . . . Robot Hacks Applied . | . . . . . . . . . . . . . . . Relay Couplers Released . | . . . . . . . . . . . . . . . Fabnet Peak Effective % . | . . . . . . . . . . . . . . . Robots Rewired . | . . . . . . . . . . . . . . . Allies Hacked 5 | . . . . . . 1 . . . 4 . . . . Hacks Repelled . | . . . . . . . . . . . . . . . Allies | -11 -10 -10 -10 -8 -7 -6 -6 -6 -6 -5 -4 -4 -4 -4 -------- Run | Yrd Mat Min Sub Mat Fac Fac Ext Cet Arc Fac Fac Was Fac Arm Total Allies 10 | . . . . . . . 4 5 . 1 . . . . Largest Group 6 | . . . . . . . 2 6 6 1 . . . . Highest-Rated Group 639 | . . . . . . . 190 639 639 29 . . . . Highest-Rated Ally 159 | . . . . . . . 159 159 159 29 . . . . Total Orders 4 | . . . . . . . . 1 2 1 . . . . FOLLOW 1 | . . . . . . . . . 1 . . . . . AID 2 | . . . . . . . . 1 1 . . . . . DROP 1 | . . . . . . . . . . 1 . . . . Ally Attacks 292 | . . . . . . 44 113 25 44 66 . . . . Total Damage 8728 | . . . . . . 1016 2646 1067 1707 2292 . . . . Kills 50 | . . . . . . 7 13 5 9 16 . . . . Allies Corrupted 4 | . . . . . . 1 . . . 3 . . . . Allies Melted 1 | . . . . . . . . . . 1 . . . . Borg Created 30 | . . . . . . 4 13 . . 13 . . . . Largest Collective 4 | . . . . . . 2 3 . . 4 . . . . Intel | -11 -10 -10 -10 -8 -7 -6 -6 -6 -6 -5 -4 -4 -4 -4 ------- Run | Yrd Mat Min Sub Mat Fac Fac Ext Cet Arc Fac Fac Was Fac Arm Active Infowar (turns) 2480 | 15 616 357 541 258 614 . . . . . 79 . . . Sensors 693 | . . . . . 614 . . . . . 79 . . . Seismic 1787 | 15 616 357 541 258 . . . . . . . . . . Jamming 1 | . . . . . 1 . . . . . . . . . Robot Analysis Total . | . . . . . . . . . . . . . . . Derelict Logs Recovered 1 | . . . 1 . . . . . . . . . . . Drone Launches . | . . . . . . . . . . . . . . . Drone Recoveries . | . . . . . . . . . . . . . . . Exploration | -11 -10 -10 -10 -8 -7 -6 -6 -6 -6 -5 -4 -4 -4 -4 ------------- Run | Yrd Mat Min Sub Mat Fac Fac Ext Cet Arc Fac Fac Was Fac Arm Turns Passed 9693 | 131 616 357 541 1293 1256 1049 1667 660 205 1332 124 66 357 39 Spaces Moved 4691 | 61 312 139 200 345 426 383 939 270 109 615 95 116 594 87 Core 328 | 3 . . . 6 . . . . . . 42 116 129 32 Treads 1725 | 58 312 139 200 125 171 . . 234 109 375 . . 2 . Legs 359 | . . . . 214 145 . . . . . . . . . Wheels 1119 | . . . . . . 144 939 36 . . . . . . Hover 403 | . . . . . 110 239 . . . 28 . . 26 . Flight 757 | . . . . . . . . . . 212 53 . 437 55 Fastest Speed 31 | 50 160 240 240 123 108 100 100 135 160 105 31 50 37 37 Average Speed 155 | 154 160 240 240 202 230 233 130 162 160 173 82 50 41 44 Slowest Speed 400 | 160 160 240 240 400 400 351 135 400 160 268 200 50 160 120 Overloaded Moves . | . . . . . . . . . . . . . . . Propulsion Burnouts . | . . . . . . . . . . . . . . . Robots Hopped 1 | . . . . . . . . . . . . . 1 . Potential Cave-ins 3 | . . . 3 . . . . . . . . . . . Cave-ins Triggered 2 | . . . 1 . . . . . 1 . . . . . Exploration Rate (%) 36 | 6 54 45 16 36 14 8 66 81 99 13 5 79 16 10 Regions Visited 14 Branch Regions 6 Pre-discovered Areas 1 | . . . 1 . . . . . . . . . . . Known Exits Taken 5 | . . . 1 . . 1 1 1 1 . . . . . Unknown Exits Taken 7 | 1 1 1 . 1 1 . . . . 1 . . 1 . Scrap Searched 1 | . . 1 . . . . . . . . . . . . Spaces Dug 16 | . . . 7 5 1 . . . 1 2 . . . . Terrain Destroyed 35 | . . . 7 16 3 . . . 1 2 . . 6 . Melee 16 | . . . 7 5 1 . . . 1 2 . . . . Projectile 8 | . . . . . 2 . . . . . . . 6 . AOE 11 | . . . . 11 . . . . . . . . . . Terrain Rammed . | . . . . . . . . . . . . . . . Walls Destroyed . | . . . . . . . . . . . . . . . Machines Disabled . | . . . . . . . . . . . . . . . Actions | -11 -10 -10 -10 -8 -7 -6 -6 -6 -6 -5 -4 -4 -4 -4 --------- Run | Yrd Mat Min Sub Mat Fac Fac Ext Cet Arc Fac Fac Was Fac Arm Total 6586 | 78 359 147 226 833 598 529 1341 475 135 842 140 123 672 88 Wait 1371 | . 2 . . 381 66 116 360 186 23 161 38 8 30 . Move 4676 | 60 311 138 199 344 425 382 938 269 108 614 95 115 591 87 Hop 1 | . . . . . . . . . . . . . 1 . Pick Up 61 | 3 6 . 3 3 14 10 4 . . 14 . . 4 . Fast Attach 56 | 7 . 1 . 12 8 6 3 2 2 4 2 . 9 . Attach 26 | . . . . 5 9 1 1 2 . 6 1 . 1 . Detach 5 | . . . . . . 1 . 2 . . 1 . 1 . Swap 29 | . 4 . 1 3 6 1 4 2 . 8 . . . . Drop 44 | . 2 . 2 1 11 5 5 2 . 11 1 . 3 1 Fire 200 | 8 32 8 . 75 48 . 7 . . . . . 22 . Melee 59 | . . . 21 7 11 . 2 7 2 8 . . 1 . Ram 2 | . . . . . . . . . . . 2 . . . Kick 1 | . . . . 1 . . . . . . . . . . Crush 12 | . 2 . . 1 . . . . . . . . 9 . Escape Stasis . | . . . . . . . . . . . . . . . Rewire 6 | . . . . . . 3 1 . . 2 . . . . Trap . | . . . . . . . . . . . . . . . Miscellaneous 37 | . . . . . . 4 16 3 . 14 . . . . Route ------- -11/Scrapyard -10/Materials (discovered 2 exits: [*Mat] / [*Min]) -10/Mines -10/Subcaves -8/Materials -7/Factory -6/Factory -6/Extension (discovered 2 exits: *Fac / *Cet) -6/Cetus -6/Archives (discovered 3 exits: *Fac / *Hub x2) -5/Factory -4/Factory -4/Waste -4/Factory -4/Armory History --------- Turn | Location | Event 17 | -11/Scrapyard | Discovered new exit (range 15) 132 | -11/Scrapyard | Entered Materials 300 | -10/Materials | Build established: Mutant 365 | -10/Materials | Discovered new exit (range 9) 690 | -10/Materials | Discovered new exit (range 16) 748 | -10/Materials | Entered Mines 1091 | -10/Mines | Discovered new exit (range 7) 1105 | -10/Mines | Entered Subcaves 1183 | -10/Subcaves | A swath of the cavern ceiling suddenly collapsed 1395 | -10/Subcaves | Shifting Twisted Machinery released Riot Gun 1399 | -10/Subcaves | Learned location of Zion (-7) 1399 | -10/Subcaves | Met a Zionite searching for "candidates" 1431 | -10/Subcaves | Shifting Twisted Machinery released Shrapnel Trap 1447 | -10/Subcaves | Identified exit to Materials 1538 | -10/Subcaves | Visited 4L-MR0's lab 1551 | -10/Subcaves | Found Prototype Special Melee Weapon 1564 | -10/Subcaves | Found Tower Shield 1605 | -10/Subcaves | Crushed by falling debris 1646 | -10/Subcaves | Entered Materials 1646 | -8/Materials | Evolved 4 slots: Propulsion x1, Utility x3 1944 | -8/Materials | Core integrity fell below 50% 1947 | -8/Materials | Lost 6 parts (1p3n1u1w) 2065 | -8/Materials | Core integrity fell below 20% 2242 | -8/Materials | Lost 4 parts (1n3w) 2553 | -8/Materials | Build established: Scavenger-Mutant 2929 | -8/Materials | Discovered new exit (range 5) 2939 | -8/Materials | Entered Factory 2939 | -7/Factory | Evolved 2 slots: Weapon x2 3364 | -7/Factory | Lost 8 parts (1p3n4u) 3870 | -7/Factory | Build established: Scavenger-Tank 3922 | -7/Factory | Core integrity fell below 50% 4177 | -7/Factory | Discovered new exit (range 15) 4195 | -7/Factory | Entered another Factory area 4195 | -6/Factory | Evolved 2 slots: Weapon x2 4196 | -6/Factory | Identified 1B-0RG's Assimilator 4226 | -6/Factory | Lost 9 parts (4n1u4w) 4283 | -6/Factory | Assimilating Slayer 5a into Collective. 4322 | -6/Factory | Assimilating Serf 5a into Collective. 4495 | -6/Factory | Build established: Mutant 4739 | -6/Factory | Assimilating Hacker 5a into Collective. 4866 | -6/Factory | Repaired Cld. Airjet 4916 | -6/Factory | Assimilating Serf 5b into Collective. 4989 | -6/Factory | Build established: Hacker-Mutant 5198 | -6/Factory | Discovered new exit (range 28) 5239 | -6/Factory | Identified exit to Extension 5244 | -6/Factory | Entered Extension 5244 | -6/Extension | Accompanied by 2 allies 5278 | -6/Extension | Assimilating Guardian 5a into Collective. 5292 | -6/Extension | Imp. Hacking Suite fried by hacking feedback 5337 | -6/Extension | Assimilating Administrator 5a into Collective. 5404 | -6/Extension | Assimilating Administrator 5b into Collective. 5428 | -6/Extension | Rescued a captive Derelict 5485 | -6/Extension | Assimilating Slayer 5b into Collective. 5489 | -6/Extension | Assimilating Soldier 5a into Collective. 5501 | -6/Extension | Assimilating Soldier 5b into Collective. 5525 | -6/Extension | Lost 6 allies 5534 | -6/Extension | Rescued a captive Derelict 5566 | -6/Extension | Assimilating Slayer 5c into Collective. 5583 | -6/Extension | Assimilating Slayer 5d into Collective. 5700 | -6/Extension | Assimilating Informer 5a into Collective. 5928 | -6/Extension | Assimilating Guardian 5b into Collective. 5929 | -6/Extension | Rescued A7 5960 | -6/Extension | Rescued a captive Derelict 5997 | -6/Extension | Spotted B-75 Beast 6030 | -6/Extension | Spotted B-75 Beast 6040 | -6/Extension | Assimilating Beast 5a into Collective. 6043 | -6/Extension | Assimilating Guardian 5c into Collective. 6053 | -6/Extension | Assimilating Beast 5b into Collective. 6072 | -6/Extension | Lost 3 allies 6291 | -6/Extension | Discovered new exit (range 15) 6292 | -6/Extension | Discovered new exit (range 15) 6345 | -6/Extension | Disrupted transfer network 6432 | -6/Extension | Build established: Scavenger-Mutant 6872 | -6/Extension | Identified exit to Factory 6876 | -6/Extension | Identified exit to Cetus 6911 | -6/Extension | Entered Cetus 6911 | -6/Cetus | Accompanied by 3 allies (A7) 6916 | -6/Cetus | Acquired a Cetus Manufacturing Module code from A7 6938 | -6/Cetus | Spotted Cetus Guard 6938 | -6/Cetus | Spotted Cetus Guard 6941 | -6/Cetus | Spotted Cetus Guard 6942 | -6/Cetus | Spotted Cetus Guard 6956 | -6/Cetus | Allies destroyed Cetus Guard 6958 | -6/Cetus | Allies destroyed Cetus Guard 6971 | -6/Cetus | Allies destroyed Cetus Guard 6981 | -6/Cetus | Allies destroyed Cetus Guard 7074 | -6/Cetus | Started Cetus Manufacturing Module 7099 | -6/Cetus | Manufactured an Enhanced Grunt 7124 | -6/Cetus | Manufactured an Enhanced Grunt 7149 | -6/Cetus | Manufactured an Enhanced Grunt 7174 | -6/Cetus | Manufactured an Enhanced Grunt 7199 | -6/Cetus | Manufactured an Enhanced Grunt 7295 | -6/Cetus | Escorted A7 to Cetus Mainframe 7534 | -6/Cetus | Discovered new exit (range 16) 7556 | -6/Cetus | Identified exit to Archives 7571 | -6/Cetus | Entered Archives 7571 | -6/Archives | Accompanied by 7 allies (A7) 7576 | -6/Archives | Received a hacking code to weaken MAIN.C 7618 | -6/Archives | Met Zhirov 7624 | -6/Archives | Reinforcements dispatched to Archives 7627 | -6/Archives | Unable to access archive contents 7643 | -6/Archives | Discovered new exit (range 15) 7657 | -6/Archives | Discovered exit to Factory (range 33) 7664 | -6/Archives | Identified exit to Hub_04(d) 7669 | -6/Archives | Reinforcements dispatched to Archives 7671 | -6/Archives | Zhirov warped through subspace 7689 | -6/Archives | Zhirov detonated Archives 7690 | -6/Archives | Core integrity fell below 50% 7701 | -6/Archives | Crushed by falling debris 7710 | -6/Archives | Discovered exit to Hub_04(d) (range 16) 7732 | -6/Archives | Lost 3 parts (2u1w) 7776 | -6/Archives | Entered Factory 7776 | -5/Factory | Evolved 2 slots: Propulsion x2 7800 | -5/Factory | Assimilating Informer 6a into Collective. 7986 | -5/Factory | Assimilating Soldier 6a into Collective. 8011 | -5/Factory | Assimilating Processor 6a into Collective. 8105 | -5/Factory | Fabricated Centrium Medium Armor Plating (x1) 8174 | -5/Factory | Assimilating Conveyor 6a into Collective. 8298 | -5/Factory | Assimilating Sage 6a into Collective. 8324 | -5/Factory | Lost 4 allies 8330 | -5/Factory | Assimilating Sentinel 6a into Collective. 8488 | -5/Factory | Assimilating Sage 6b into Collective. 8493 | -5/Factory | Assimilating Sage 6c into Collective. 8499 | -5/Factory | Assimilating Sentinel 6b into Collective. 8536 | -5/Factory | Lost 4 allies 8552 | -5/Factory | Assimilating Soldier 6b into Collective. 8622 | -5/Factory | Cargo convoy interrupted 8954 | -5/Factory | System corruption reached 10% 8965 | -5/Factory | Build established: Hacker-Mutant 8970 | -5/Factory | Assimilating Disruptor 6a into Collective. 9070 | -5/Factory | Assimilating Veteran 6a into Collective. 9077 | -5/Factory | Assimilating Soldier 6c into Collective. 9104 | -5/Factory | Discovered new exit (range 4) 9108 | -5/Factory | Entered another Factory area 9108 | -4/Factory | Evolved 2 slots: Power x1, Utility x1 9124 | -4/Factory | Lost 3 allies 9136 | -4/Factory | Lost 5 parts (1p2n1u1w) 9232 | -4/Factory | Sucked down chute 9232 | -4/Factory | Entered Waste 9245 | -4/Waste | Lost 9 parts (1p4n3u1w) 9245 | -4/Waste | Spotted C-40 Crusher 9247 | -4/Waste | EMP discharged 9250 | -4/Waste | Spotted C-40 Crusher 9252 | -4/Waste | Spotted C-40 Crusher 9254 | -4/Waste | Spotted C-40 Crusher 9255 | -4/Waste | Spotted C-40 Crusher 9255 | -4/Waste | Spotted C-40 Crusher 9293 | -4/Waste | Discovered new exit (range 11) 9298 | -4/Waste | Entered Factory 9419 | -4/Factory | Attached Tower Shield, gained temporary slots: Power, Propulsion x2, Utility x2, Weapon x2 9434 | -4/Factory | Core integrity fell below 50% 9497 | -4/Factory | Lost 3 parts (2n1u) 9651 | -4/Factory | Discovered new exit (range 12) 9655 | -4/Factory | Entered Armory 9672 | -4/Armory | Core integrity fell below 20% 9694 | -4/Armory | Destroyed by Tiamat Bomb Trap Last Messages --------------- 09654_ Slug penetrates Wall. 09654_ Machine disabled. LOCATION=UNKNOWN GOAL=ESCAPE 09661_ Slug penetrates Wall. 09664_ Impulse Thruster destroyed. 09667_ Dropped Centrium Greatsword. 09669_ System corrupted: Component data lost. 09672_ Fabricator disabled. 09672_ Penetrated by Slug. 09673_ Slug penetrates Wall. 09678_ Penetrated by Slug. 09679_ Impulse Thruster destroyed. 09682_ Penetrated by Slug. 09684_ O-32 Director: "IFF HANDSHAKE FAILED. SECURING TERMINAL." 09689_ ALERT: Hostiles spotted, dispatching reinforcements to Terminal A010. 09694_ Triggered Tiamat Bomb Trap. 09694_ An explosion rips through the floor. Map ----- +----------------------------------------------------+ | ?????????????????????????????????????????????????? | | ?????????????????????????????????????????????????? | | ?????????????????????????????????????????????????? | | ?????????????????????????????????????????????????? | | ?????????????????????????????????????????????????? | | ?????????????????????????????????????????????????? | | ?????????????????????????????????????????????????? | | ?????????????????????????????????????????????????? | | ?????????????????????????????????????????????????? | | ?????????????????????????????????????????????????? | | ?????????????????????????????????????????????????? | | ?????????????????????????????????????????????????? | | ?????????????????????????????????????????????????? | | ?????????????????????????????????????????????????? | | ?????????????????????????????????????????????????? | | ?????????????????????????????????????????????????? | | ?????????????????????????????????????????????????? | | ?????????????????????????????????????????????????? | | ?????????????????????????????????????????????????? | | ?????????????????????????????????????????????????? | | ?????????????????????????????????????????????????? | | ?????????????????????????????????????????????????? | | ?????????????????????????????????????????????????? | | ?????????????????????#+###+#########+############# | | ?????????????????????# | | ?????????????????????# @ ! | | ?????????????????????# """ | | ?????????????????????# """ ####### | | ?????????????????????# """ #?????# | | ???????????????????? "" +?????# | | ?????????????????? "F"" #?????# | | ????????????????? """" #?????# | | ????????????????##########+####+#######?????# | | ????????????????????????????????????????????###### | | ?????????????????????????????????????????????????? | | ?????????????????????????????????????????????????? | | ?????????????????????????????????????????????????? | | ?????????????????????????????????????????????????? | | ?????????????????????????????????????????????????? | | ?????????????????????????????????????????????????? | | ?????????????????????????????????????????????????? | | ?????????????????????????????????????????????????? | | ?????????????????????????????????????????????????? | | ?????????????????????????????????????????????????? | | ?????????????????????????????????????????????????? | | ?????????????????????????????????????????????????? | | ?????????????????????????????????????????????????? | | ?????????????????????????????????????????????????? | | ?????????????????????????????????????????????????? | | ?????????????????????????????????????????????????? | +----------------------------------------------------+ Best States ------------- Heat Dissipation 67 Energy Generation 21 Energy Capacity 290 Matter Stores 300 Matter Capacity 300 Sight Range 16 Robot Scan Range 15 Terrain Scan Density 10 Armor Coverage 2000 Evasion (%) 62 Recoil Reduction 3 Particle Charging 15 Salvage Targeting 3 Offensive Hacking 22 Defensive Hacking 24 Item Schematics ----------------- Lrn. Sensor Array | -6/Extension | Hacked Centrium Medium Armor Plating | -5/Factory | Scanalyzed Robot Schematics ------------------ None Fabricated ------------ Centrium Medium Armor Plating | x1 | -5/Factory Repaired ---------- Cld. Airjet | 28% | -6/Factory Studied --------- Arm. Huge Wheel | -6/Factory | Hacked Alien Tech Used ----------------- None Achievements -------------- Deductive Reasoning I, Locutus Main Advantage Prison Break Project G-00 Challenges ------------ None Game ------ Seed OvertunedTerrorProjector Manual? 0 Play Time 01:08:02 Cumulative 118.6 hours Start 2026.04.01 @ 16:14:05 End 2026.04.02 @ 12:34:32 Sessions 1 Manual Loads 0 Difficulty Rogue Special Mode None Game No. 173 Rogue 173 Adventurer 0 Explorer 0 Win Type - Total 1 Types 1/0/0/0/0/0/0/0/0/0 Lore% 50 Gallery% 52 Achievement% 39 Wizard Run 0 Options --------- Layout 1 ASCII 0 Keyboard 1 Movement Arrows Keybinds 0 Fullscreen 1 Font 24/Smallcaps Map View 50x35 Zoom Use 0% Tactical HUD 1 Map Filters NONE Filters NONE Steam 1 RUN: 72242b58-3151-4f60-bc33-6066e18e224b